Workbook

Sheet Sheet1
A1: 2017级光学工程系硕士研究生二阶段学业奖学金评审汇总表
A2: 序号 | B2: 专业 | C2: 学号 | D2: 姓名 | E2: 平均绩点（学院核算） | F2: 论文 | G2: 专利 | H2: 竞赛 | I2: 思想政治表现 | J2: 初审分 | K2: 初审标准分 | L2: 复审分 | M2: 最终分 | N2: 奖学金等级
A3: 1 | B3: 光学工程 | C3: 172390314 | D3: 郑世凯 | E3: 3.34 | F3: 12.5 | G3: 0.25 | J3: =E3*0.4+0.4*(F3+G3+H3)+0.2*I3 -> 6.434482759 | K3: 50 | L3: 50 | M3: =L3+K3 -> 100 | N3: 一等奖
A4: 2 | B4: 光学工程 | C4: 172390294 | D4: 费起来 | E4: 3.08 | F4: 7 | H4: 5.8 | J4: 6.351666667 | K4: =J4*K3/J3 -> 49.3564666 | L4: 49 | M4: =L4+K4 -> 98.3564666 | N4: 一等奖
A5: 3 | B5: 光学工程 | C5: 172390307 | D5: 翟珊 | E5: 3.63 | F5: 10.75 | G5: 0.25 | J5: 5.852 | K5: 45.47374062 | L5: 45 | M5: 90.47374062 | N5: 一等奖
A6: 4 | B6: 光学工程 | C6: 173740598 | D6: 曾静 | E6: 3.18 | F6: 10 | G6: 0.25 | J6: 5.372 | K6: 41.74383708 | L6: 42 | M6: 83.74383708 | N6: 一等奖
A7: 5 | B7: 光学工程 | C7: 173740583 | D7: 张秀翔 | E7: 3.16 | H7: 8 | J7: 4.464 | K7: 34.68810289 | L7: 35 | M7: 69.68810289 | N7: 一等奖
A8: 6 | B8: 光学工程 | C8: 173740626 | D8: 吴淑娴 | E8: 3.35 | F8: 3 | H8: 2 | I8: 2 | J8: 3.74 | K8: 29.06216506 | L8: 30 | M8: 59.06216506 | N8: 一等奖
A9: 7 | B9: 光学工程 | C9: 172390308 | D9: 徐博伟 | E9: 3.40 | G9: 2.75 | H9: 2 | I9: 1 | J9: 3.45862069 | K9: 26.87566988 | L9: 27 | M9: 53.87566988 | N9: 一等奖
A10: 8 | B10: 光学工程 | C10: 173740600 | D10: 陈焘 | E10: 3.42 | F10: 5 | J10: 3.368 | K10: 26.17148982 | L10: 26 | M10: 52.17148982 | N10: 一等奖
A11: 9 | B11: 光学工程 | C11: 173740584 | D11: 寇天一 | E11: 3.30 | G11: 1 | H11: 4 | J11: 3.32 | K11: 25.79849946 | L11: 25.8 | M11: 51.59849946 | N11: 一等奖
A12: 10 | B12: 光学工程 | C12: 172390337 | D12: 邓操 | E12: 3.74 | G12: 0.25 | H12: 4 | J12: 3.196 | K12: 24.83494105 | L12: 24.8 | M12: 49.63494105 | N12: 一等奖
A13: 11 | B13: 光学工程 | C13: 172390288 | D13: 殷晨晖 | E13: 3.87 | H13: 4 | J13: 3.148 | K13: 24.4619507 | L13: 24.5 | M13: 48.9619507 | N13: 一等奖
A14: 12 | B14: 光学工程 | C14: 173740619 | D14: 王秀花 | E14: 3.49 | G14: 0.25 | H14: 4 | J14: 3.096 | K14: 24.05787781 | L14: 24 | M14: 48.05787781 | N14: 一等奖
A15: 13 | B15: 光学工程 | C15: 172390289 | D15: 王俊炜 | E15: 3.59 | H15: 4 | J15: 3.036 | K15: 23.59163987 | L15: 24 | M15: 47.59163987 | N15: 一等奖
A16: 14 | B16: 光学工程 | C16: 173740559 | D16: 刘志鹤 | E16: 3.33 | H16: 4.2 | J16: 3.012 | K16: 23.40514469 | L16: 24 | M16: 47.40514469 | N16: 一等奖
A17: 15 | B17: 光学工程 | C17: 172390315 | D17: 潘帅 | E17: 3.53 | F17: 4 | J17: 3.012 | K17: 23.40514469 | L17: 24 | M17: 47.40514469 | N17: 一等奖
A18: 16 | B18: 光学工程 | C18: 172390277 | D18: 张跃华 | E18: 3.51 | H18: 4 | J18: 3.004 | K18: 23.34297964 | L18: 23.5 | M18: 46.84297964 | N18: 一等奖
A19: 17 | B19: 光学工程 | C19: 172390283 | D19: 魏仕绅 | E19: 3.58 | F19: 1.5 | H19: 2 | J19: 2.831034483 | K19: 21.99892819 | L19: 22 | M19: 43.99892819 | N19: 一等奖
A20: 18 | B20: 光学工程 | C20: 172390286 | D20: 张雨乐 | E20: 3.50 | H20: 3 | J20: 2.6 | K20: 20.20364416 | L20: 20.5 | M20: 40.70364416 | N20: 一等奖
A21: 19 | B21: 光学工程 | C21: 173740604 | D21: 仲路铭 | E21: 3.14 | G21: 0.25 | H21: 2 | I21: 2 | J21: 2.556 | K21: 19.86173633 | L21: 20 | M21: 39.86173633 | N21: 一等奖
A22: 20 | B22: 光学工程 | C22: 172390325 | D22: 史俊 | E22: 3.25 | G22: 1 | H22: 2 | J22: 2.498275862 | K22: 19.41318328 | L22: 19.5 | M22: 38.91318328 | N22: 一等奖
A23: 21 | B23: 光学工程 | C23: 172390317 | D23: 徐晖 | E23: 3.64 | G23: 0.25 | H23: 2 | J23: 2.355172414 | K23: 18.30117899 | L23: 18.5 | M23: 36.80117899 | N23: 一等奖
A24: 22 | B24: 光学工程 | C24: 172390309 | D24: 周玮 | E24: 3.76 | H24: 2 | J24: 2.304 | K24: 17.90353698 | L24: 18 | M24: 35.90353698 | N24: 二等奖
A25: 23 | B25: 光学工程 | C25: 173740560 | D25: 姜敏 | E25: 3.49 | F25: 0.25 | H25: 2 | J25: 2.296 | K25: 17.84137192 | L25: 17.8 | M25: 35.64137192 | N25: 二等奖
A26: 24 | B26: 光学工程 | C26: 172390273 | D26: 尹晓蒙 | E26: 3.22 | H26: 2 | I26: 1 | J26: 2.288 | K26: 17.77920686 | L26: 17.7 | M26: 35.47920686 | N26: 二等奖
A27: 25 | B27: 光学工程 | C27: 172390296 | D27: 李亚东 | E27: 3.64 | H27: 2 | J27: 2.255172414 | K27: 17.52411576 | L27: 17.5 | M27: 35.02411576 | N27: 二等奖
A28: 26 | B28: 光学工程 | C28: 173740561 | D28: 王笑笑 | E28: 3.61 | H28: 2 | J28: 2.244 | K28: 17.43729904 | L28: 17.4 | M28: 34.83729904 | N28: 二等奖
A29: 27 | B29: 光学工程 | C29: 172390326 | D29: 陈磊 | E29: 3.27 | G29: 0.25 | H29: 2 | J29: 2.206666667 | K29: 17.14719543 | L29: 17.2 | M29: 34.34719543 | N29: 二等奖
A30: 28 | B30: 光学工程 | C30: 172390282 | D30: 范成 | E30: 3.51 | H30: 2 | J30: 2.205 | K30: 17.13424437 | L30: 17.1 | M30: 34.23424437 | N30: 二等奖
A31: 29 | B31: 光学工程 | C31: 173740563 | D31: 孙静 | E31: 3.49 | H31: 2 | J31: 2.196 | K31: 17.06430868 | L31: 17 | M31: 34.06430868 | N31: 二等奖
A32: 30 | B32: 光学工程 | C32: 173740562 | D32: 孙文峰 | E32: 3.23 | G32: 0.25 | H32: 2 | J32: 2.192 | K32: 17.03322615 | L32: 17 | M32: 34.03322615 | N32: 二等奖
A33: 31 | B33: 光学工程 | C33: 173740612 | D33: 韩晶晶 | E33: 3.48 | H33: 2 | J33: 2.192 | K33: 17.03322615 | L33: 17 | M33: 34.03322615 | N33: 二等奖
A34: 32 | B34: 光学工程 | C34: 173740597 | D34: 陈诚 | E34: 3.45 | H34: 2 | J34: 2.18 | K34: 16.93997856 | L34: 16.94 | M34: 33.87997856 | N34: 二等奖
A35: 33 | B35: 光学工程 | C35: 173740614 | D35: 卢定凡 | E35: 3.43 | H35: 2 | J35: =E35*0.4+0.4*(F35+G35+H35)+0.2*I35 -> 2.172 | K35: 16.8778135 | L35: 16.9 | M35: 33.7778135 | N35: 二等奖
A36: 34 | B36: 光学工程 | C36: 173740567 | D36: 巨瑞雪 | E36: 3.36 | H36: 2 | J36: 2.144 | K36: =J36*K35/J35 -> 16.6602358 | L36: 16.7 | M36: 33.3602358 | N36: 二等奖
A37: 35 | B37: 光学工程 | C37: 173740622 | D37: 陈小婉 | E37: 3.32 | H37: 2 | J37: 2.128 | K37: 16.53590568 | L37: 16.54 | M37: 33.07590568 | N37: 二等奖
A38: 36 | B38: 光学工程 | C38: 173740575 | D38: 孙晓宇 | E38: 3.55 | F38: 1.5 | G38: 0.25 | J38: 2.12 | K38: 16.47374062 | L38: 16.5 | M38: 32.97374062 | N38: 二等奖
A39: 37 | B39: 光学工程 | C39: 172390329 | D39: 顾兆麒 | E39: 3.25 | H39: 2 | J39: 2.098275862 | K39: 16.30493033 | L39: 16.3 | M39: 32.60493033 | N39: 二等奖
A40: 38 | B40: 光学工程 | C40: 172390324 | D40: 元明霞 | E40: 3.21 | H40: 2 | J40: 2.084 | K40: 16.19399786 | L40: 16.2 | M40: 32.39399786 | N40: 二等奖
A41: 39 | B41: 光学工程 | C41: 172390278 | D41: 姚文龙 | E41: 3.16 | H41: 2 | J41: 2.062068966 | K41: 16.02357985 | L41: 16 | M41: 32.02357985 | N41: 二等奖
A42: 40 | B42: 光学工程 | C42: 173740592 | D42: 陶雷 | E42: 2.91 | H42: 2 | J42: 1.964 | K42: 15.26152197 | L42: 15.3 | M42: 30.56152197 | N42: 二等奖
A43: 41 | B43: 光学工程 | C43: 172390295 | D43: 江志鹏 | E43: 2.90 | H43: 2 | J43: 1.960344828 | K43: 15.23311897 | L43: 15.3 | M43: 30.53311897 | N43: 二等奖
A44: 42 | B44: 光学工程 | C44: 172390299 | D44: 田程 | E44: 2.90 | H44: 2 | J44: 1.96 | K44: 15.23043944 | L44: 15.2 | M44: 30.43043944 | N44: 二等奖
A45: 43 | B45: 光学工程 | C45: 172390272 | D45: 申桐 | E45: 2.85 | H45: 2 | J45: 1.939655172 | K45: 15.07234727 | L45: 15.1 | M45: 30.17234727 | N45: 二等奖
A46: 44 | B46: 光学工程 | C46: 172390327 | D46: 夏克文 | E46: 2.77 | H46: 2 | J46: 1.90862069 | K46: 14.83118971 | L46: 14.9 | M46: 29.73118971 | N46: 二等奖
A47: 45 | B47: 光学工程 | C47: 173740625 | D47: 蒋兴乐 | E47: 2.76 | H47: 2 | J47: 1.904 | K47: 14.79528403 | L47: 14.8 | M47: 29.59528403 | N47: 二等奖
A48: 46 | B48: 光学工程 | C48: 173740573 | D48: 田蓉 | E48: 3.43 | I48: 2 | J48: 1.772 | K48: 13.76956056 | L48: 13.8 | M48: 27.56956056 | N48: 二等奖
A49: 47 | B49: 光学工程 | C49: 172390335 | D49: 寇晨昊 | E49: 3.42 | I49: 2 | J49: 1.768 | K49: 13.73847803 | L49: 13.7 | M49: 27.43847803 | N49: 二等奖
A50: 48 | B50: 光学工程 | C50: 173740616 | D50: 于颖 | E50: 3.57 | F50: 0.5 | J50: 1.628 | K50: 12.6505895 | L50: 12.7 | M50: 25.3505895 | N50: 二等奖
A51: 49 | B51: 光学工程 | C51: 172390279 | D51: 王良玉 | E51: 2.99 | G51: 1 | J51: 1.596551724 | K51: 12.40621651 | L51: 12.6 | M51: 25.00621651 | N51: 二等奖
A52: 50 | B52: 光学工程 | C52: 173740565 | D52: 李海 | E52: 3.16 | F52: 0.75 | J52: 1.564 | K52: 12.15326902 | L52: 12.2 | M52: 24.35326902 | N52: 二等奖
A53: 51 | B53: 光学工程 | C53: 173740577 | D53: 潘俊 | E53: 3.61 | G53: 0.25 | J53: 1.544 | K53: 11.99785638 | L53: 12 | M53: 23.99785638 | N53: 二等奖
A54: 52 | B54: 光学工程 | C54: 172390291 | D54: 孟丛 | E54: 3.83 | J54: 1.532 | K54: 11.90460879 | L54: 11.5 | M54: 23.40460879 | N54: 二等奖
A55: 53 | B55: 光学工程 | C55: 172390304 | D55: 贾新月 | E55: 3.56 | G55: 0.25 | J55: 1.524 | K55: 11.84244373 | L55: 11.8 | M55: 23.64244373 | N55: 二等奖
A56: 54 | B56: 光学工程 | C56: 172390313 | D56: 阳婷 | E56: 3.52 | G56: 0.25 | J56: 1.508 | K56: 11.71811361 | L56: 11.6 | M56: 23.31811361 | N56: 二等奖
A57: 55 | B57: 光学工程 | C57: 172390305 | D57: 徐晓立 | E57: 3.46 | G57: 0.25 | J57: 1.484 | K57: 11.53161844 | L57: 11.5 | M57: 23.03161844 | N57: 二等奖
A58: 56 | B58: 光学工程 | C58: 172390297 | D58: 魏光宇 | E58: 2.65 | I58: 2 | J58: 1.46 | K58: 11.34512326 | L58: 11.3 | M58: 22.64512326 | N58: 二等奖
A59: 57 | B59: 光学工程 | C59: 172390285 | D59: 马美林 | E59: 3.60 | J59: 1.44 | K59: 11.18971061 | L59: 11.2 | M59: 22.38971061 | N59: 二等奖
A60: 58 | B60: 光学工程 | C60: 173740629 | D60: 方明月 | E60: 3.58 | J60: 1.432 | K60: 11.12754555 | L60: 11.2 | M60: 22.32754555 | N60: 二等奖
A61: 59 | B61: 光学工程 | C61: 172390310 | D61: 谢欣茹 | E61: 3.57 | J61: 1.428 | K61: 11.09646302 | L61: 11.1 | M61: 22.19646302 | N61: 二等奖
A62: 60 | B62: 光学工程 | C62: 172390336 | D62: 孙玉 | E62: 3.56 | J62: 1.424 | K62: 11.06538049 | L62: 11.1 | M62: 22.16538049 | N62: 二等奖
A63: 61 | B63: 光学工程 | C63: 173740580 | D63: 彭丽娜 | E63: 3.55 | J63: 1.42 | K63: 11.03429796 | L63: 11 | M63: 22.03429796 | N63: 二等奖
A64: 62 | B64: 光学工程 | C64: 173740607 | D64: 刘星 | E64: 3.55 | J64: 1.42 | K64: 11.03429796 | L64: 11 | M64: 22.03429796 | N64: 二等奖
A65: 63 | B65: 光学工程 | C65: 173740620 | D65: 侯娇杰 | E65: 3.55 | J65: 1.42 | K65: 11.03429796 | L65: 11 | M65: 22.03429796 | N65: 二等奖
A66: 64 | B66: 光学工程 | C66: 173740623 | D66: 刘剑锐 | E66: 3.53 | J66: 1.412 | K66: 10.9721329 | L66: 10.9 | M66: 21.8721329 | N66: 二等奖
A67: 65 | B67: 光学工程 | C67: 172390275 | D67: 吕宋 | E67: 3.51 | J67: =E67*0.4+0.4*(F67+G67+H67)+0.2*I67 -> 1.404 | K67: =J67*K65/J65 -> 10.90996785 | L67: 10.9 | M67: 21.80996785 | N67: 二等奖
A68: 66 | B68: 光学工程 | C68: 172390306 | D68: 韩思敏 | E68: 3.50 | J68: 1.4 | K68: =J68*K67/J67 -> 10.87888532 | L68: 10.9 | M68: =L68+K68 -> 21.77888532 | N68: 二等奖
A69: 67 | B69: 光学工程 | C69: 173740617 | D69: 府燕君 | E69: 3.50 | J69: 1.4 | K69: 10.87888532 | L69: 10.9 | M69: 21.77888532 | N69: 二等奖
A70: 68 | B70: 光学工程 | C70: 173740615 | D70: 徐颖 | E70: 3.49 | J70: 1.396 | K70: 10.84780279 | L70: 10.85 | M70: 21.69780279 | N70: 二等奖
A71: 69 | B71: 光学工程 | C71: 173740630 | D71: 高聪 | E71: 3.49 | J71: 1.396 | K71: 10.84780279 | L71: 10.85 | M71: 21.69780279 | N71: 二等奖
A72: 70 | B72: 光学工程 | C72: 173740618 | D72: 张维薇 | E72: 3.44971667 | J72: 1.379886668 | K72: 10.72259201 | L72: 10.7 | M72: 21.42259201 | N72: 三等奖
A73: 71 | B73: 光学工程 | C73: 172390322 | D73: 雷雨 | E73: 2.94583333 | G73: 0.5 | J73: 1.378333332 | K73: 10.7105216 | L73: 10.7 | M73: 21.4105216 | N73: 三等奖
A74: 72 | B74: 光学工程 | C74: 172390312 | D74: 王思雨 | E74: 3.44 | J74: 1.376 | K74: 10.69239014 | L74: 10.7 | M74: 21.39239014 | N74: 三等奖
A75: 73 | B75: 光学工程 | C75: 173740599 | D75: 刘安琦 | E75: 3.40 | J75: 1.36 | K75: 10.56806002 | L75: 10.6 | M75: 21.16806002 | N75: 三等奖
A76: 74 | B76: 光学工程 | C76: 173740569 | D76: 孙群 | E76: 3.34 | J76: 1.336 | K76: 10.38156484 | L76: 10.4 | M76: 20.78156484 | N76: 三等奖
A77: 75 | B77: 光学工程 | C77: 173740596 | D77: 肖海成 | E77: 3.33 | J77: 1.332 | K77: 10.35048232 | L77: 10.4 | M77: 20.75048232 | N77: 三等奖
A78: 76 | B78: 光学工程 | C78: 173740589 | D78: 朱清 | E78: 3.30 | J78: 1.32 | K78: 10.25723473 | L78: 10.2 | M78: 20.45723473 | N78: 三等奖
A79: 77 | B79: 光学工程 | C79: 173740601 | D79: 付寒梅 | E79: 3.29 | J79: 1.316 | K79: 10.2261522 | L79: 10.2 | M79: 20.4261522 | N79: 三等奖
A80: 78 | B80: 光学工程 | C80: 172390298 | D80: 聂源 | E80: 3.04 | G80: 0.25 | J80: 1.315517241 | K80: 10.22240086 | L80: 10.2 | M80: 20.42240086 | N80: 三等奖
A81: 79 | B81: 光学工程 | C81: 172390316 | D81: 胡晓蕾 | E81: 3.28 | J81: 1.310344828 | K81: 10.18220793 | L81: 10.2 | M81: 20.38220793 | N81: 三等奖
A82: 80 | B82: 光学工程 | C82: 172390321 | D82: 张桂雪 | E82: 3.27 | J82: 1.308 | K82: 10.16398714 | L82: 10.2 | M82: 20.36398714 | N82: 三等奖
A83: 81 | B83: 光学工程 | C83: 172390331 | D83: 朱润琳 | E83: 3.27 | J83: 1.308 | K83: 10.16398714 | L83: 10.2 | M83: 20.36398714 | N83: 三等奖
A84: 82 | B84: 光学工程 | C84: 172390280 | D84: 焦子傲 | E84: 2.76 | G84: 0.5 | J84: 1.304 | K84: 10.13290461 | L84: 10.2 | M84: 20.33290461 | N84: 三等奖
A85: 83 | B85: 光学工程 | C85: 172390323 | D85: 王云坤 | E85: 3.25 | J85: 1.3 | K85: 10.10182208 | L85: 10.1 | M85: 20.20182208 | N85: 三等奖
A86: 84 | B86: 光学工程 | C86: 173740603 | D86: 甘继伟 | E86: 3.24 | J86: 1.296 | K86: 10.07073955 | L86: 10.1 | M86: 20.17073955 | N86: 三等奖
A87: 85 | B87: 光学工程 | C87: 172390301 | D87: 王冬 | E87: 2.99 | G87: 0.25 | J87: 1.295 | K87: 10.06296892 | L87: 10.1 | M87: 20.16296892 | N87: 三等奖
A88: 86 | B88: 光学工程 | C88: 173740578 | D88: 郑亚辉 | E88: 3.22 | J88: 1.288 | K88: 10.00857449 | L88: 10 | M88: 20.00857449 | N88: 三等奖
A89: 87 | B89: 光学工程 | C89: 173740571 | D89: 隗垚 | E89: 3.20 | J89: 1.28 | K89: 9.946409432 | L89: 9.9 | M89: 19.84640943 | N89: 三等奖
A90: 88 | B90: 光学工程 | C90: 172390319 | D90: 陈海虹 | E90: 3.18 | J90: 1.272 | K90: 9.884244373 | L90: 9.9 | M90: 19.78424437 | N90: 三等奖
A91: 89 | B91: 光学工程 | C91: 173740611 | D91: 刘昶 | E91: 3.16 | J91: 1.264 | K91: 9.822079314 | L91: 9.9 | M91: 19.72207931 | N91: 三等奖
A92: 90 | B92: 光学工程 | C92: 173740582 | D92: 刘群伟 | E92: 3.15 | J92: 1.26 | K92: 9.790996785 | L92: 9.8 | M92: 19.59099678 | N92: 三等奖
A93: 91 | B93: 光学工程 | C93: 173740591 | D93: 周建忠 | E93: 3.15 | J93: 1.26 | K93: 9.790996785 | L93: 9.8 | M93: 19.59099678 | N93: 三等奖
A94: 92 | B94: 光学工程 | C94: 173740595 | D94: 梁昌沛 | E94: 3.05 | J94: 1.22 | K94: 9.48017149 | L94: 9.5 | M94: 18.98017149 | N94: 三等奖
A95: 93 | B95: 光学工程 | C95: 172390281 | D95: 蔡文龙 | E95: 2.99 | J95: 1.195 | K95: 9.285905681 | L95: 9.3 | M95: 18.58590568 | N95: 三等奖
A96: 94 | B96: 光学工程 | C96: 173740608 | D96: 刘进 | E96: 2.97 | J96: 1.188 | K96: 9.231511254 | L96: 9.2 | M96: 18.43151125 | N96: 三等奖
A97: 95 | B97: 光学工程 | C97: 173740587 | D97: 李振 | E97: 2.93 | J97: 1.172 | K97: 9.107181136 | L97: 9.1 | M97: 18.20718114 | N97: 三等奖
A98: 96 | B98: 光学工程 | C98: 173740593 | D98: 袁庆斌 | E98: 2.90 | J98: 1.16 | K98: 9.013933548 | L98: 9 | M98: 18.01393355 | N98: 三等奖
A99: 97 | B99: 光学工程 | C99: 173740602 | D99: 施浩 | E99: 2.87 | J99: =E99*0.4+0.4*(F99+G99+H99)+0.2*I99 -> 1.148 | K99: 8.920685959 | L99: 9 | M99: 17.92068596 | N99: 三等奖
A100: 98 | B100: 光学工程 | C100: 173740606 | D100: 顾伟民 | E100: 2.75 | J100: 1.1 | K100: 8.547695606 | L100: 8.5 | M100: 17.04769561 | N100: 三等奖
A101: 99 | B101: 光学工程 | C101: 173740624 | D101: 祝光泉 | E101: 2.70 | J101: 1.08 | K101: =J101*K98/J98 -> 8.392282958 | L101: 8.4 | M101: 16.79228296 | N101: 三等奖
A102: 100 | B102: 光学工程 | C102: 172390274 | D102: 李振宇 | E102: 未申请 | N102: 三等奖
A103: 101 | B103: 光学工程 | C103: 172390276 | D103: 张政 | E103: 未申请 | N103: 三等奖
A104: 102 | B104: 光学工程 | C104: 172390284 | D104: 王国旭 | E104: 未申请 | N104: 三等奖
A105: 103 | B105: 光学工程 | C105: 172390287 | D105: 张腾飞 | E105: 未申请 | N105: 三等奖
A106: 104 | B106: 光学工程 | C106: 172390290 | D106: 刘逍 | E106: 未申请 | N106: 三等奖
A107: 105 | B107: 光学工程 | C107: 172390292 | D107: 孙召召 | E107: 未申请 | N107: 三等奖
A108: 106 | B108: 光学工程 | C108: 172390293 | D108: 陈晓伟 | E108: 未申请 | N108: 三等奖
A109: 107 | B109: 光学工程 | C109: 172390300 | D109: 陶雪辰 | E109: 未申请 | N109: 三等奖
A110: 108 | B110: 光学工程 | C110: 172390302 | D110: 吴鹏 | E110: 未申请 | N110: 三等奖
A111: 109 | B111: 光学工程 | C111: 172390303 | D111: 张翔 | E111: 未申请 | N111: 三等奖
A112: 110 | B112: 光学工程 | C112: 172390311 | D112: 张肖凡 | E112: 未申请 | N112: 三等奖
A113: 111 | B113: 光学工程 | C113: 172390318 | D113: 庚志浩 | E113: 未申请 | N113: 三等奖
A114: 112 | B114: 光学工程 | C114: 172390320 | D114: 刘薇 | E114: 未申请 | N114: 三等奖
A115: 113 | B115: 光学工程 | C115: 172390328 | D115: 曹元广 | E115: 未申请 | N115: 三等奖
A116: 114 | B116: 光学工程 | C116: 172390330 | D116: 钱富琛 | E116: 未申请 | N116: 三等奖
A117: 115 | B117: 光学工程 | C117: 172390332 | D117: 陈同 | E117: 未申请 | N117: 三等奖
A118: 116 | B118: 光学工程 | C118: 172390333 | D118: 陈惠康 | E118: 未申请 | N118: 三等奖
A119: 117 | B119: 光学工程 | C119: 172390334 | D119: 刘少杰 | E119: 未申请 | N119: 三等奖
A120: 118 | B120: 光学工程 | C120: 173740564 | D120: 马志豪 | E120: 未申请 | N120: 三等奖
A121: 119 | B121: 光学工程 | C121: 173740566 | D121: 张善婷 | E121: 未申请 | N121: 三等奖
A122: 120 | B122: 光学工程 | C122: 173740568 | D122: 程朝亮 | E122: 未申请 | N122: 三等奖
A123: 121 | B123: 光学工程 | C123: 173740570 | D123: 郑思旭 | E123: 未申请 | N123: 三等奖
A124: 122 | B124: 光学工程 | C124: 173740572 | D124: 孙光瑀 | E124: 未申请 | N124: 三等奖
A125: 123 | B125: 光学工程 | C125: 173740574 | D125: 柳阳 | E125: 未申请 | N125: 三等奖
A126: 124 | B126: 光学工程 | C126: 173740576 | D126: 喻治俊 | E126: 未申请 | N126: 三等奖
A127: 125 | B127: 光学工程 | C127: 173740579 | D127: 贡航 | E127: 未申请 | N127: 三等奖
A128: 126 | B128: 光学工程 | C128: 173740581 | D128: 云竹溪 | E128: 未申请 | N128: 三等奖
A129: 127 | B129: 光学工程 | C129: 173740585 | D129: 宋健 | E129: 未申请 | N129: 三等奖
A130: 128 | B130: 光学工程 | C130: 173740586 | D130: 王祈亮 | E130: 未申请 | N130: 三等奖
A131: 129 | B131: 光学工程 | C131: 173740588 | D131: 罗世忠 | E131: 未申请 | N131: 三等奖
A132: 130 | B132: 光学工程 | C132: 173740590 | D132: 沈志威 | E132: 未申请 | N132: 三等奖
A133: 131 | B133: 光学工程 | C133: 173740594 | D133: 顾页妮 | E133: 未申请 | N133: 三等奖
A134: 132 | B134: 光学工程 | C134: 173740605 | D134: 叶飞 | E134: 未申请 | N134: 三等奖
A135: 133 | B135: 光学工程 | C135: 173740609 | D135: 鄢朋朋 | E135: 未申请 | N135: 三等奖
A136: 134 | B136: 光学工程 | C136: 173740610 | D136: 贺明洋 | E136: 未申请 | N136: 三等奖
A137: 135 | B137: 光学工程 | C137: 173740613 | D137: 宋可 | E137: 未申请 | N137: 三等奖
A138: 136 | B138: 光学工程 | C138: 173740621 | D138: 随海亮 | E138: 未申请 | N138: 三等奖
A139: 137 | B139: 光学工程 | C139: 173740627 | D139: 周冬杰 | E139: 未申请 | N139: 三等奖
A140: 138 | B140: 光学工程 | C140: 173740628 | D140: 曹顺 | E140: 未申请 | N140: 三等奖

Sheet Sheet2

Sheet Sheet3
